Cogmind - Beta 16 @@@ ROGUE MODE // 2026.01.14 @ 20:05:09 Player: mlys Result: Destroyed by S7-XAU(R) with Subdweller Machine Gun Performance ------------- Evolutions (0) 0 Regions Visited (2) 400 Robots Destroyed (5) 25 Value Destroyed (97) 97 Prototype IDs (0) 0 Alien Tech Used (0) 0 Bonus (-295) -295 TOTAL SCORE: 227 Bonus ------- Friendly Fire -295 Cogmind --------- Core Integrity 0/250 Matter 204/300 Energy 99/100 System Corruption 31% Temperature Warm (131) Movement Core (50) Location -10/Subcaves Parts ------- > --- POWER (1) -------- (None) > --- PROPULSION (2) --- (None) > --- UTILITY (2) ------ Terrain Scanner > --- WEAPON (2) ------- Small Laser Small Laser > --- INVENTORY (5) ---- Light Ion Engine Neutrino Core Seismic Detector Scrap Shield Peak State ------------ > --- POWER ------------ Neutrino Core > --- PROPULSION ------- Light Treads Light Treads > --- UTILITY ---------- Small Storage Unit Core Shielding > --- WEAPON ----------- Small Laser Bore Cannon > --- INVENTORY -------- Light Ion Engine Light Ion Engine Terrain Scanner Seismic Detector Scrap Shield Small Laser Small Laser [Rating: 17] Favorites ----------- Power Light Ion Engine Engine Light Ion Engine Power Core Neutrino Core Propulsion Light Treads Treads Light Treads Utility Small Storage Unit Device Terrain Scanner Storage Small Storage Unit Protection Core Shielding Weapon Small Laser Energy Gun Small Laser Ballistic Cannon Bore Cannon Build | -11 -10 -10 ------- Run | Yrd Mat Sub Slots Evolved . | . . . Power . | . . . Propulsion . | . . . Utility . | . . . Weapon . | . . . Parts Attached 12 | 6 1 5 Power 3 | 1 . 2 Engine 2 | 1 . 1 Core 1 | . . 1 Reactor . | . . . Propulsion 2 | 2 . . Treads 2 | 2 . . Leg . | . . . Wheel . | . . . Hover . | . . . Flight . | . . . Utility 3 | 1 1 1 Device 1 | . . 1 Storage 1 | 1 . . Processor . | . . . Hackware . | . . . Protection 1 | . 1 . Artifact . | . . . Weapon 4 | 2 . 2 Energy Gun 3 | 2 . 1 Energy Cannon . | . . . Ballistic Gun . | . . . Ballistic Cannon 1 | . . 1 Launcher . | . . . Special Weapon . | . . . Impact Weapon . | . . . Slashing Weapon . | . . . Piercing Weapon . | . . . Special Melee Weapon . | . . . Unidentified Prototypes . | . . . Corrupted Parts 2 | . . 2 System Corruption 19 | . . 19 Parts Lost 6 | . . 6 Power 1 | . . 1 Propulsion 2 | . . 2 Utility 2 | . . 2 Weapon 1 | . . 1 Highest Loss Streak 4 | . . 4 To Critical Strikes . | . . . Average Backups 3 | 1 1 6 Power 1 | . 1 1 Propulsion . | . . . Utility 1 | . . 2 Weapon . | . . 1 Tool/Special . | . . . Unused Backups 3 | . . 3 Power . | . . . Propulsion . | . . . Utility 2 | . . 2 Weapon 1 | . . 1 Tool/Special . | . . . Average Slot Usage (%) 90 | . 89 91 Engine 9 | . 14 5 Core 4 | . . 8 Treads 27 | . 28 27 Device 1 | . . 3 Storage 14 | . 14 14 Protection 6 | . 4 8 Energy Gun 23 | . 28 19 Ballistic Cannon 2 | . . 3 Peak Build Rating 17 | 6 7 17 Average Rating 7 | 5 6 10 On Entrance 4 | . 6 7 Avg Prop Armor Cover (%) . | . . . Naked Turns . | . . . Heaviest Build 30 | 11 12 30 Greatest Support 40 | 40 40 40 Greatest Overweight (x) 2 | . . 2 Average Overweight (x) . | . . . Largest Inventory Capacity 8 | 8 8 8 Average Capacity 7 | 7 8 7 Most Carried 8 | 5 5 8 Average Carried 3 | 1 1 7 Final Capacity 8 | 8 8 5 Final Carried 5 | 1 5 5 Class Distribution -------------------- 100% | Mutant Dominant Class ---------------- Mutant | -10/Materials Mutant | -10/Subcaves Resources | -11 -10 -10 ----------- Run | Yrd Mat Sub Matter Collected 355 | 259 11 85 Remotely . | . . . Salvage Created 215 | 13 63 139 Parts 19 | 4 6 9 Haulers Intercepted . | . . . Recyclers Shooed . | . . . Parts Field Recycled . | . . . Retrieved Matter . | . . . Parts Self-Destructed . | . . . Prevented . | . . . Parts Restored . | . . . Kills | -11 -10 -10 ------- Run | Yrd Mat Sub Combat Hostiles Destroyed 2 | . 1 1 Guns 2 | . 1 1 Classes Destroyed 5 | 1 2 2 Tunneler 1 | 1 . . Operator 1 | . 1 . Grunt 1 | . 1 . Subdweller 1 | . . 1 Guerrilla 1 | . . 1 Best Kill Streak 1 | 1 1 1 Combat Bots Only 1 | . 1 1 Max Kills in Single Turn 1 | 1 1 1 Gunslinging . | . . . Exploded . | . . . Melee . | . . . Uniques/NPCs Destroyed . | . . . Combat | -11 -10 -10 -------- Run | Yrd Mat Sub Hostile Shots Fired 62 | . 19 43 Missed 17 | . 6 11 Hits 45 | . 13 32 Projectile 45 | . 13 32 Critical Strikes 1 | . 1 . Actively Blocked 1 | . 1 . Damage Taken 1186 | . 165 1021 Core 258 | . 30 228 Absorbed by Shields . | . . . Redirected to Shielding 6 | . 6 . Core Remaining (%) 100 | 100 . . Volleys Fired 54 | 2 7 45 Largest 2 | 2 2 2 Hottest 88 | 80 80 88 Shots Fired 97 | 4 14 79 Gun 81 | 4 14 63 Cannon 16 | . . 16 Launcher . | . . . Special . | . . . Kinetic 16 | . . 16 Thermal 61 | 2 7 52 Explosive . | . . . Electromagnetic 20 | 2 7 11 Robot Hit Streak 6 | 2 4 6 Robot Miss Streak 3 | . 3 3 Penetration Max . | . . . Secondary Targets . | . . . Shots Hit Robots 35 | 2 7 26 Core Hits 15 | 1 3 11 Critical Kills . | . . . Critical Parts Destroyed . | . . . Critical Strikes . | . . . Melee Attacks . | . . . Impact . | . . . Slashing . | . . . Piercing . | . . . Sneak Attacks . | . . . Combat Hostiles . | . . . Follow-up Attacks . | . . . Damage Inflicted 459 | 23 94 342 Guns 456 | 23 94 339 Cannons . | . . . Explosions . | . . . Melee . | . . . Ramming 3 | . . 3 Kinetic . | . . . Thermal 253 | 11 12 230 Explosive . | . . . Electromagnetic 203 | 12 82 109 Impact . | . . . Slashing . | . . . Piercing . | . . . Highest Corruption 31 | . . 31 Average Corruption 22 | . . 22 Corruption Purged . | . . . Corruption Blocked . | . . . Effects 25 | . . 25 Message Errors 5 | . . 5 Matter Fused 7 | . . 7 Heat Flow Errors 1 | . . 1 Energy Discharges 4 | . . 4 Data Loss (minor) 3 | . . 3 Misfires 1 | . . 1 Weapon Failures 4 | . . 4 Overload Shots . | . . . Overflow Damage . | . . . Projectiles . | . . . Explosions . | . . . Melee . | . . . Knockbacks . | . . . Impact . | . . . Kinetic . | . . . Secondary . | . . . Self-Inflicted Damage 3 | . . 3 Shots . | . . . Rammed . | . . . Targets Rammed . | . . . Kicked . | . . . Crushed . | . . . Highest Temperature 176 | 18 108 176 Average Temperature 44 | 12 43 153 Received Heat Transfer 99 | . 93 6 Siege Activations . | . . . Martial Activations . | . . . Shielding Activations . | . . . Robots Disrupted . | . . . Combat Hostiles . | . . . Robots Corrupted 1 | . . 1 Combat Hostiles . | . . . Parts Fried 1 | . . 1 Impact Corruptions . | . . . Robots Melted . | . . . Combat Hostiles . | . . . Parts Melted . | . . . Heat Transferred 575 | 25 25 525 Parts Sabotaged . | . . . Parts Stolen . | . . . Parts Stripped . | . . . Power Chain Reactions . | . . . Alert | -11 -10 -10 ------- Run | Yrd Mat Sub Maximum Alert Level . | . . . Low Security (%) 100 | 100 100 . Level 1 . | . . . Level 2 . | . . . Level 3 . | . . . Level 4 . | . . . Level 5 . | . . . High Security . | . . . Max Security . | . . . Peak Influence 20 | 5 20 . Initial . | . . . Average . | . 1 . Influence Increases 35 | 5 30 . Destroy 0b10 Robot/C 20 | . 20 . Destroy 0b10 Robot/NC 10 | 5 5 . Successful Hack 5 | . 5 . Influence Decreases 35 | 5 26 4 Entered New Map 3 | . . 3 Time Decay 32 | 5 26 1 Squads Dispatched 1 | . 1 . Investigation 1 | . 1 . Extermination . | . . . Reinforcement . | . . . Assault . | . . . Garrison . | . . . Intercept . | . . . Searches Triggered . | . . . Construction Impeded . | . . . Haulers Reinforced . | . . . Active Scanning Responses . | . . . Cargo Convoy Interrupts . | . . . Stealth | -11 -10 -10 --------- Run | Yrd Mat Sub Distress Signals . | . . . Communications Jammed . | . . . Distress Signals . | . . . Times Spotted 10 | . 3 7 Peak Tracking Total 7 | . 2 7 Tactical Retreats . | . . . Traps | -11 -10 -10 ------- Run | Yrd Mat Sub Traps Triggered . | . . . Indirectly . | . . . Trap Hack Attempts . | . . . Triggered . | . . . Disarmed . | . . . Reprogrammed . | . . . Reused . | . . . Traps Extracted . | . . . Installed . | . . . Triggered . | . . . Machines | -11 -10 -10 ---------- Run | Yrd Mat Sub Machines Disabled . | . . . Max in Single Turn . | . . . Machines Repaired . | . . . Machines Dismantled . | . . . Machines Sabotaged . | . . . Overloaded Fab Kills . | . . . Hacking | -11 -10 -10 --------- Run | Yrd Mat Sub Machines Accessed 1 | . 1 . Terminals 1 | . 1 . Fabricators . | . . . Repair Stations . | . . . Recycling Units . | . . . Scanalyzers . | . . . Garrison Access . | . . . Total Hacks 3 | . 3 . Successful 2 | . 2 . Failed 1 | . 1 . Catastrophic . | . . . Database Lockouts . | . . . Manual . | . . . Terminals 3 | . 3 . Fabricators . | . . . Repair Stations . | . . . Recycling Units . | . . . Scanalyzers . | . . . Garrison Access . | . . . Terminal Hacks 2 | . 2 . Recall Investigation 1 | . 1 . Hauler Manifests 1 | . 1 . Fabricator Hacks . | . . . Repair Station Hacks . | . . . Recycling Unit Hacks . | . . . Scanalyzer . | . . . Garrison Access Hacks . | . . . Unauthorized Hacks . | . . . Terminals . | . . . Fabricators . | . . . Repair Stations . | . . . Recycling Units . | . . . Scanalyzers . | . . . Garrison Access . | . . . Data Cores Recovered 1 | . 1 . Used 1 | . 1 . Hacking Detections 1 | . 1 . Full Trace Events 1 | . 1 . Feedback Events . | . . . Feedback Blocked . | . . . Robot Schematics Acquired . | . . . Robots Built . | . . . Authchips . | . . . Time . | . . . Total Robot Build Rating . | . . . Part Schematics Acquired . | . . . Parts Built . | . . . Authchips . | . . . Time . | . . . Total Part Build Rating . | . . . Part Studies Acquired . | . . . Parts Repaired . | . . . Time . | . . . Parts Recycled . | . . . Recycled Matter . | . . . Retrieved Matter . | . . . Retrieved Components . | . . . Parts Scanalyzed . | . . . Part Schematics Acquired . | . . . Parts Damaged . | . . . Bothacking | -11 -10 -10 ------------ Run | Yrd Mat Sub Used RIF Installer . | . . . Robots Hacked . | . . . Non-combat . | . . . Combat . | . . . Robot Hacks Applied . | . . . Relay Couplers Released . | . . . Fabnet Peak Effective % . | . . . Robots Rewired . | . . . Allies Hacked . | . . . Hacks Repelled . | . . . Allies | -11 -10 -10 -------- Run | Yrd Mat Sub Total Allies . | . . . Largest Group . | . . . Highest-Rated Group . | . . . Highest-Rated Ally . | . . . Total Orders . | . . . Ally Attacks . | . . . Total Damage . | . . . Kills . | . . . Allies Corrupted . | . . . Allies Melted . | . . . Intel | -11 -10 -10 ------- Run | Yrd Mat Sub Active Infowar (turns) 147 | . . 147 Terrain 147 | . . 147 Robot Analysis Total . | . . . Derelict Logs Recovered . | . . . Drone Launches . | . . . Drone Recoveries . | . . . Exploration | -11 -10 -10 ------------- Run | Yrd Mat Sub Turns Passed 1558 | 565 421 572 Spaces Moved 733 | 212 247 274 Core 35 | 30 . 5 Treads 698 | 182 247 269 Legs . | . . . Wheels . | . . . Hover . | . . . Flight . | . . . Fastest Speed 50 | 50 160 50 Average Speed 154 | 144 160 158 Slowest Speed 160 | 160 160 160 Overloaded Moves . | . . . Propulsion Burnouts . | . . . Robots Hopped . | . . . Potential Cave-ins 20 | . . 20 Cave-ins Triggered 1 | . . 1 Exploration Rate (%) 13 | 14 21 6 Regions Visited 2 Branch Regions 1 Pre-discovered Areas . | . . . Known Exits Taken . | . . . Unknown Exits Taken 2 | 1 1 . Scrap Searched . | . . . Spaces Dug 9 | . . 9 Terrain Destroyed 15 | . . 15 Melee . | . . . Projectile 15 | . . 15 AOE . | . . . Terrain Rammed 1 | . . 1 Walls Destroyed . | . . . Machines Disabled . | . . . Actions | -11 -10 -10 --------- Run | Yrd Mat Sub Total 1053 | 466 259 328 Wait 241 | 241 . . Move 730 | 211 246 273 Hop . | . . . Pick Up 13 | 6 5 2 Fast Attach 2 | 1 . 1 Attach 8 | 5 1 2 Detach . | . . . Swap 2 | . . 2 Drop 1 | . . 1 Fire 54 | 2 7 45 Melee . | . . . Ram 1 | . . 1 Kick . | . . . Crush . | . . . Escape Stasis 1 | . . 1 Rewire . | . . . Trap . | . . . Miscellaneous . | . . . Route ------- -11/Scrapyard -10/Materials (discovered 2 exits: [*Mat] / [*Sub]) -10/Subcaves History --------- Turn | Location | Event 26 | -11/Scrapyard | Discovered new exit (range 16) 566 | -11/Scrapyard | Entered Materials 567 | -10/Materials | Build established: Mutant 971 | -10/Materials | Discovered new exit (range 14) 979 | -10/Materials | Discovered new exit (range 6) 987 | -10/Materials | Entered Subcaves 1180 | -10/Subcaves | System corruption reached 10% 1331 | -10/Subcaves | Crushed by falling debris 1332 | -10/Subcaves | System corruption reached 30% 1509 | -10/Subcaves | Ambushed by swarm of Subdwellers 1522 | -10/Subcaves | Core integrity fell below 50% 1555 | -10/Subcaves | Core integrity fell below 20% 1559 | -10/Subcaves | Destroyed by S7-XAU(R) with Subdweller Machine Gun Last Messages --------------- L 7AT6N36TP6SMT4PX|FEUW6F4WC#AVJ 1#OS System corrupted: Matter fused (-5). System corrupted: FCS attempts to trigger Sml. Laser. System corrupted: Sml. Laser misfires. System corrupted: Matter fused (-5). System corrupted: Matter fused (-9). EJMDRR4%ATCP:TB7 AS0LE1Y 03-31J(R) emerges from the Twisted Machinery. H4-P3X(R) emerges from the Twisted Machinery. System corrupted: Sml. Laser failed to cycle. Lgt. Treads destroyed. System corrupted: Energy discharge (-41). System corrupted: Sml. Laser failed to cycle. Lgt. Treads destroyed. Lgt. Ion Engine destroyed. H4-P3X(R) destroyed. System corrupted: Heat flow error (+221). Sml. Storage Unit destroyed. Map ----- +----------------------------------------------------+ | ????????????????????? ???### #### ### ##" | | ???????????????????????# ##?## ## # ### ###"# | | ???????????????????????# ### ## " | | ???????????????????????# ## ## | | ????????????????????????# ### # ###?### | | ????????????????????????## ####?#####?????? | | ??????????????????????#??# #??#?#?????##??? | | ??????????????????????#??## ## #??????????????? | | ??????????????????????????# #####??????????????? | | ?????????????????????????## ####?#?????????????? | | ????????????????????###### ##??????????????? | | ????????????????????# ## ##????#????????? | | ?????????????????????# ## ###???????????? | | ?????????????????????## #### #?????#?????? | | ??????????????????????# ##### ##???????????? | | ??????????????????????## ### ###????????????? | | ???????????????????#???## ### #?????#????????? | | ???????????????????????####?# ##??????????????? | | ??????????????????????#?????# #????#??????????? | | ?????????????????#????#????## #???????????????? | | ??????????????????????????## ##?#?????????????? | | ?????????????????? ??????# ##??"##???????????? | | ?????????????????????#?#### [##RR #???????????? | | ????????????????????# ## [!RR #?#?????????? | | ????????????????????# R ##???????????? | | ????????????????????# @ #### #??#?????????? | | ???????????????# ##???? #????????????? | | ???????????????# ### #?????? #???????????? | | ???????????????## ##???## #????? ?#???????????? | | ????????????????#????????# ##???????????????????? | | ?????????????????????????####????????????????????? | | ?????????????????????????????????????????????????? | | ?????????????????????????????#???????????????????? | | ?????????????????????#???????#???????????????????? | | ?????????????????????????????????????????????????? | | ?????????????????????????????????????????????????? | | ?????????????????????????????????????????????????? | | ?????????????????????????????????????????????????? | | ?????????????????????????????????????????????????? | | ?????????????????????????????????????????????????? | | ?????????????????????????????????????????????????? | | ?????????????????????????????????????????????????? | | ?????????????????????????????????????????????????? | | ?????????????????????????????????????????????????? | | ?????????????????????????????????????????????????? | | ?????????????????????????????????????????????????? | | ?????????????????????????????????????????????????? | | ?????????????????????????????????????????????????? | | ?????????????????????????????????????????????????? | | ?????????????????????????????????????????????????? | +----------------------------------------------------+ Best States ------------- Heat Dissipation 25 Energy Generation 19 Energy Capacity 315 Matter Stores 300 Matter Capacity 300 Sight Range 16 Terrain Scan Range 14 Terrain Scan Density 10 Core Shielding 20 Evasion (%) 50 Recoil Reduction 2 Item Schematics ----------------- None Robot Schematics ------------------ None Fabricated ------------ Nothing Repaired ---------- Nothing Studied --------- None Alien Tech Used ----------------- None Achievements -------------- A Problem For Future Me Backstab DATA ERROR: Steam Global Achievement% Dynamic Key Organ Harvest Power Corrupts System Compromised That Tickles Unlikely Earthworm Challenges ------------ None Game ------ Seed LobotomyBiometalRailcannon Manual? 0 Play Time 00:16:47 Cumulative 1.9 hours Start 2026.01.13 @ 23:04:47 End 2026.01.14 @ 20:05:09 Sessions 2 Manual Loads 0 Difficulty Rogue Special Mode None Game No. 8 Rogue 8 Adventurer 0 Explorer 0 Win Type - Total 0 Types 0/0/0/0/0/0/0/0/0/0 Lore% 0 Gallery% 4 Achievement% 4 Wizard Run 0 Options --------- Layout 1 ASCII 0 Keyboard 0 Movement Arrows Keybinds 0 Fullscreen 1 Font 24/Smallcaps Map View 50x35 Zoom Use 0% Tactical HUD 0 Map Filters NONE Filters NONE Steam 1 RUN: 31b9f544-6f7d-4da2-a3a2-cecda0151823